Workbook

Sheet Examples (hidden)
A1: IPART COLOUR CODES FOR MODELS AND INFORMATION REQUESTS
B2: NB ALWAYS DESCRIBE THE COLOUR CODE USED IN YOUR MODEL
B3: Note: If you use the formats for the inputs provided in this template, input cells will always be unprotected even when you protect the worksheet
H4: use this column cell to "paint" input cells for numbers (NOT for percentages)
I5: use this column cell to "paint" input cells for percentages (NOT numbers)
B6: Models
B7: Option 1 (best for models that will be used repeatedly) | G7: =G22 -> numbers | H7: =H22 -> % | I7: Option 2 (best for smaller models for once-off and/or own use)
B8: Inputs | G8: 4442 | H8: 0.08 | I8: Inputs | J8: 67 | K8: 0.03
B9: Links from other files (green) | I9: =B9 -> Links from other files (green)
B10: Error check (check =0) | I10: Error check (check =0)
B11: Error warnings, messages and unusual calculation assumptions | I11: =B11 -> Error warnings, messages and unusual calculation assumptions
B12: Indicate change in formula across row with a double red line | I12: ..change in formula across row with a double red line
B13: Key outputs | I13: =B13 -> Key outputs
B14: Note: can combine options, eg:
B15: Example 1 | D15: Inputs for model runs | F15: AND
C16: Hard-coded protected inputs that can't be changed (eg credit ratio and ratings tables)
B18: Example 2 | D18: Inputs can be links to other files in some runs
D19: Attention can be drawn to different/unusual inputs
H20: use this column cell to "paint" input cells for numbers (NOT for percentages)
B21: Information Requests | I21: use this column cell to "paint" input cells for percentages (NOT numbers)
G22: numbers | H22: %
B23: compulsory inputs (numbers and text) | G23: 234 | H23: 0.24
B24: Forecast Inputs | G24: 667 | H24: 0.05
B25: Error warnings and messages
B26: Error check (check =0)
B28: QA notes - annotation or documenation by QA staff
A31: User Instructions - IPART CHARTS
B33: Dark blue | C33: Lime | D33: Red | E33: Blue | F33: Light gold | G33: Green | H33: Maroon | I33: Light blue | L33: Blue solid | M33: Lime solid | N33: Red solid | O33: Blue dashes | P33: Lime dashes | Q33: Red dashes | S33: X value | T33: 1st Y value | U33: 2nd Y value | X33: Black | Y33: Red 100% | Z33: Red 70% | AA33: Grey 40%
A34: 1975-76 | B34: 36.19 | C34: 36.88 | D34: 21.56 | E34: 5.36 | F34: 3.01 | G34: 10 | H34: 3.01 | I34: 10 | K34: 1975-76 | L34: 33.19 | M34: 36.88 | N34: 21.56 | O34: 5.36 | P34: 3.01 | Q34: 10 | S34: 1.8 | T34: 10 | U34: 17 | W34: 1975-76 | X34: 33.19 | Y34: 36.88 | Z34: 21.56 | AA34: 5.36
A35: 1983-84 | B35: 39.39 | C35: 32.02 | D35: 21.6 | E35: 7.01 | F35: 3.36 | G35: 12 | H35: 3.36 | I35: 12 | K35: 1983-84 | L35: 39.39 | M35: 32.02 | N35: 21.6 | O35: 7.01 | P35: 3.36 | Q35: 12 | S35: 2.3 | T35: 12 | U35: 9 | W35: 1983-84 | X35: 39.39 | Y35: 32.02 | Z35: 21.6 | AA35: 7.01
A36: 1988-89 | B36: 42.78 | C36: 29.91 | D36: 18.35 | E36: 6.33 | F36: 2.63 | G36: 14 | H36: 2.63 | I36: 14 | K36: 1988-89 | L36: 42.78 | M36: 29.91 | N36: 18.35 | O36: 6.33 | P36: 2.63 | Q36: 14 | S36: 3.7 | T36: 16 | U36: 14 | W36: 1988-89 | X36: 42.78 | Y36: 29.91 | Z36: 18.35 | AA36: 6.33
A37: 1993-94 | B37: 42.13 | C37: 26.53 | D37: 21.6 | E37: 7.01 | F37: 2.72 | G37: 16 | H37: 2.72 | I37: 16 | K37: 1993-94 | L37: 42.13 | M37: 26.53 | N37: 21.6 | O37: 7.01 | P37: 2.72 | Q37: 16 | S37: 4.1 | T37: 8 | U37: 23 | W37: 1993-94 | X37: 42.13 | Y37: 26.53 | Z37: 21.6 | AA37: 7.01
A38: 1996-97 | B38: 41.69 | C38: 24.76 | D38: 23.98 | E38: 7 | F38: 2.57 | G38: 18 | H38: 2.57 | I38: 18 | K38: 1996-97 | L38: 41.69 | M38: 24.76 | N38: 23.98 | O38: 7 | P38: 2.57 | Q38: 18 | S38: 5.5 | T38: 14 | U38: 27 | W38: 1996-97 | X38: 41.69 | Y38: 24.76 | Z38: 23.98 | AA38: 7
A39: 1997-98 | B39: 39.39 | C39: 32.02 | D39: 21.6 | E39: 7.01 | F39: 3.36 | G39: 12 | H39: 3.36 | I39: 12 | K39: 1997-98 | L39: 39.39 | M39: 32.02 | N39: 21.6 | O39: 7.01 | P39: 3.36 | Q39: 12 | W39: 1997-98 | X39: 39.39 | Y39: 32.02 | Z39: 21.6 | AA39: 7.01
A40: 1998-99 | B40: 42.13 | C40: 26.53 | D40: 21.6 | E40: 7.01 | F40: 2.72 | G40: 16 | H40: 2.72 | I40: 16 | K40: 1998-99 | L40: 42.13 | M40: 26.53 | N40: 21.6 | O40: 7.01 | P40: 2.72 | Q40: 16 | W40: 1998-99 | X40: 42.13 | Y40: 26.53 | Z40: 21.6 | AA40: 7.01
A41: 1999-00 | B41: 45 | C41: 22 | D41: 26 | E41: 8 | F41: 2 | G41: 20 | H41: 2 | I41: 20 | K41: 1999-00 | L41: 45 | M41: 22 | N41: 26 | O41: 8 | P41: 2 | Q41: 20 | W41: 1999-00 | X41: 45 | Y41: 22 | Z41: 26 | AA41: 8
A42: – en rule for when needed

Sheet USER GUIDE
B2: LANDHOLDER COMPENSATION MODEL
B4: 1. PURPOSE OF THE MODEL
B5: The purpose of the model is to estimate benchmark compensation and incentive payments for landholders hosting coal seam gas exploration and production in NSW.
B7: 2. STRUCTURE OF THE MODEL
B8: The model contains four worksheets.
B9: INPUT worksheet: This worksheet is where you enter information about your circumstances. Section 3 below provides more information on this worksheet. At any time, click the “RESET” button on the top right hand corner to clear all inputs.
B10: RESULTS worksheet: This worksheet shows compensation and incentive payments based on the information provided in the INPUT worksheet. It consists of three parts:
C11: ▼ PART A shows compensation payments. There are two options. You can show a single upfront payment by selecting "LUMP-SUM UPFRONT" or a series of annual payments by selecting "ANNUAL PAYMENT".
C12: ▼ PART B shows incentive payments such as production bonuses that are provided in addition to compensation.
C13: ▼ PART C graphically shows a schedule of compensation and incentive payments over your access agreement period.
B14: CALC worksheet: This worksheet provides detailed calculations of compensation and incentive payments. More information about this worksheet including how the model estimates compensation and incentive payments is provided in Section 4 of this guide.
B15: CONVERSION worksheet: The model calculates payments based on land area in hectares and land value per hectare. If you have different units for your land area and land value, you can use this worksheet to convert into hectares.
B17: 3. HOW TO USE THE INPUT WORKSHEET
B18: The INPUT worksheet consists of two parts. PART A requires inputs for compensation and PART B requires inputs for incentive payments.
B19: PART A: INPUTS FOR COMPENSATION PAYMENTS
B20: Category | D20: Inputs | E20: Description
B21: (1) Land access agreement details | D21: How long is your access agreement? | E21: Enter an estimate of the number of years for your land access agreement.
B22: (2) Landholding details | D22: What is the total area of your land? | E22: Enter the total area of your property in hectares.
D23: What is the estimated value of your land per hectare? | E23: Enter an estimate of the value of your land in dollars per hectare. This is the value of your land without any gas development on it.
D24: What is the rental value of land? | E24: Enter an estimate of the rental value of your land as a percentage of land value. For reference, NSW Department of Primary Industries indicates that rental value ranges from around 5% to 9% of the value of land for dryland agriculture, and around 10% of the value of land for irrigated lands. See comment box for reference.
B25: (3) Estimated impact on land and landholder
B26: (a) Directly impacted land | D26: In the first year
C27: : Directly impacted land is land occupied by (or set aside for) CSG infrastructure by gas company. | D27: What is the total area of land used by gas company? | E27: This is the area of land occupied by the gas company during construction of CSG infrastructure such as wells, access roads, pipelines etc.
D28: From the second year
D29: What is the total area of land used by gas company? | E29: This is the area of land occupied by CSG infrastructure once construction is completed (assumed to be from year two onwards). Generally, this area will be smaller than the area of land used during construction.
B30: (b) Residual land | D30: In the first year
C31: :Residual land is the total area of the landholder's property excluding the directly impacted land. | D31: What is the estimated reduction in the value of residual land | E31: Severance refers to a reduction in the market value of residual land due to
D32: due to severance? | E32: physical interference of CSG activities. For example, (i) an access road may split a farmer’s paddock into two separate paddocks, or (ii) the location of CSG infrastructure may leave a parcel of land that is too small for its original (or potentially higher value) use. It is often possible to locate CSG infrastructure so that there are minimal or no impacts from severance. It is assumed that any percentage reduction in land value applies to the entire residual land area. An independent valuer would be able to provide an estimate of an overall reduction in the value of the residual land due to severance.
D33: What is the estimated reduction in the value of residual land | E33: Injurious affection refers to all other impacts that affect the market value
D34: due to injurious affection? | E34: of residual land (excluding severance). The market value of residual land may be affected by a range of impacts and inconveniences, including (but not limited to): (i) noise, dust, smell and light from construction and traffic, (ii) visual impacts of operation (iii) loss of privacy (iv) other lifestyle impacts, and (v) reduced control over daily farm management. It is assumed that any percentage reduction in land value due to injurious affection applies to the entire residual land area. An independent valuer would be able to provide an estimate of an overall reduction in the market value of residual land due to injurious affection.
D35: From the second year
D36: What is the estimated reduction in the value of residual land | E36: Please refer to the description above.
D37: due to severance?
D38: What is an estimated reduction in the value of indirectly | E38: Please refer to the description above.
D39: impacted land due to injurious affections?
B40: (4) Landholder time and professional advice | D40: How many hours did you spend negotiating your access agreement? | E40: Estimate the total number of hours you spent (or will spend) negotiating your access agreement.
D41: How many hours do you expect to spend each year on matters related to you access agreement? | E41: Provide the number of hours you reasonably expect to spend dealing with the gas company per year on issues related to CSG activities.
D42: Enter an estimate of the value of your time | E42: Provide an estimate of the value of your time per hour. This is to estimate the dollar value of time you spent negotiating your access agreement. As a guide, Transport for NSW estimates that the value of travel time is $49.61 per hour for business travel (in $2014/15). See comment box for reference.
D43: How much did you spend on fees for professional advice (eg, legal, valuation and other fees) including GST? | E43: Provide an estimate of the total cost of professional advice on legal, accounting, valuation and taxation, and other fees.
B44: (5) Other assumptions | D44: What rate of return would you expect to earn on financial investments per year? (You need this input only if you wish to calculate a lump sum up-front payment) | E44: Provide a rate of return you reasonably expect to earn if you were to invest annual compensation payments. For example, it can be an interest rate on your saving account or term deposit. We use the interest rate to discount future annual compensation payments (see Section 4 below). This information is required only if you want to calculate lump-sum upfront compensation payment. If you want to estimate annual compensation only, you do not need to provide this information.
D45: Inflation rate | E45: Inflation measures the extent to which prices of goods and services go up. If an access agreement states that annual compensation and/or incentive payments will be adjusted annually by any increase in the CPI, this means compensation will increase at the rate of inflation. A reasonable inflation rate that could be used in this model is the midpoint of the Reserve Bank of Australia's inflation target rate, which is 2.5 percent.
B46: PART B: INPUTS FOR INCENTIVE PAYMENTS
B47: Part B relates to incentive payments. You will need to provide the year in which you expect to receive the first payment. We have assumed that this is when a project enters the production stage (ie, when a gas company expects to start producing a commercial quantity of gas). The model assumes that incentive payments are received at the end of each production year. For example, as shown in the diagram below if a gas project proceeds to the production stage in the fourth year of your access agreement period, you will receive the first incentive payment at the end of year 4 (ie, at the beginning of year 5).
B49: Beginning of Year | D49: *N is the length of an access agreement
B50: Please select an option that is relevant to you from the dropdown list and provide required inputs.
C51: ▼ Select "Statutory annual royalty payment" if your incentive payments are based on the gas company's annual royalty payment to the NSW Government. You will be asked to provide inputs listed in (1) of the table below.
C52: ▼ Select "Producing well meeting the target production" if your incentive payments are based on producing wells. You will be asked to provide inputs listed in (2) of the table below.
C53: ▼ Select "Estimated annual incentive payment" if the gas company has provided you with an estimate of annual incentive payments or if you do not have sufficient information to use the previous two options. You will be asked to provide inputs listed in (3) of the table below.
B55: Incentive payment option selected | D55: Inputs | E55: Description
B56: (1) Statutory annual royalty payment | D56: Gas company's statutory annual royalty payment | E56: Gas companies are required to pay royalties to the NSW Government for the gas that they recover in NSW (as a percentage of the value of gas at the well-head). The gas company may be able to provide an estimate of its royalty payment.
D57: % of royalty gas company contributes to incentive fund | E57: Enter the percentage of the royalty payment the gas company agrees to contribute to its incentive fund each year.
D58: Total licence area for production | E58: Provide the total area of land utilised by the gas company under the petroleum production licence.
B59: (2) Producing well meeting the target production | D59: Total number of producing wells in licence area that exceed the production target | E59: Provide an estimate of the total number of wells in a licence area that exceed their annual production target. You may be able to obtain this information from your gas company.
D60: Amount of money per well a gas company contributes to the incentive fund in the first year of production when gas production from a well exceeds its target level | E60: Provide the dollar amount that gas company agrees to contribute to the incentive fund in the first year of the production stage for each well when its production exceeds a target level of production.
D61: Total number of eligible landholders in licence area | E61: Provide the total number of landholders who are eligible to receive incentive payments in the licence area.
B62: (3) Estimated annual incentive payment | D62: An estimate of annual incentive payments in the first year of production | E62: Provide an estimate of the annual incentive payment you may receive in the first year of the production stage.
B64: 4. HOW COMPENSATION AND INCENTIVE PAYMENTS ARE CALCULATED? ("CALC" WORKSHEET)
B65: The CALC worksheet consists of three parts. PART A calculates compensation in a series of annual payments. PART B calculates compensation as a lump-sum upfront payment using annual payments calculated in PART A. PART C calculates incentive payments.
B66: PART A: CALCULATING ANNUAL COMPENSATION PAYMENT
B67: Compensation payments in our model includes the rent for land occupied and compensation for severance and injurious affection, and the costs of landholder’s time and professional advice. The model allows different land areas and reductions in land value due to severance and injurious affection in the first year and from the second year onwards, taking into account that impacts on landholders are often greater in the first year of an access agreement.
B68: Compensation in the first year
C69: ▼ Rent for land occupied = Value of land ($/ha) × Area of land used in the first year (ha) × Rental rate (%)
C70: ▼ Compensation for severance = Value of land ($/ha) × Area of residual land* in the first year (ha) × Estimated reduction in land value due to severance in the first year (%) × Rental rate (%)
C71: ▼ Compensation for injurious affections = Value of land ($/ha) × Area of residual land* in the first year (ha) × Estimated reduction in land value due to injurious affections in the first year (%) × Rental rate (%)
C72: ▼ Landholder time and expert advice = Total number of hours spent negotiating access agreement × Landholder’s value of time ($/hour) + Total cost of professional advice ($)
B73: Compensation from the second year onwards
C74: ▼ Rent for land occupied = Value of land ($/ha) × Area of land used from the second year (ha) × Rental rate (%)
C75: ▼ Compensation for severance = Value of land ($/ha) × Area of residual land* from the second year (ha) × Estimated reduction in land value due to severance from the second year (%) × Rental rate (%)
C76: ▼ Compensation for injurious affections = Value of land ($/ha) × Area of residual land* from the second year (ha) × Estimated reduction in land value due to injurious affections from the second year (%) × Rental rate (%)
C77: ▼ Landholder time and expert advice = Total number of hours spent dealing with gas company each year × Landholder’s value of time ($/hour)
C78: *The area of residual land is given by a landholder’s total landholding less the area of land occupied by CSG infrastructure.
B79: PART B: CALCULATING LUMP-SUM UPFRONT COMPENSATION PAYMENT
B80: PART B calculates a lump-sum upfront compensation payment as the present value of all annual payments a landholder is expected to receive during the access agreement period. The calculation assumes that annual payments are made at the beginning of each year and are reinvested at a rate of return. The formula for this calculation is shown below.
D83: where PMTn is annual compensation in year n, and N is the length of an access agreement
B85: PART C: CALCULATING THE INCENTIVE PAYMENT
B86: When "Statutory annual royalty payment" or "Producing well meeting the target production" is selected as a basis for incentive payments, the model assumes that a gas company first creates an “incentive fund” to which it contributes certain amounts each year. The total incentive fund is then shared by all affected landholders within a licence area. The details of incentive payment calculations are provided below.
B87: If "Statutory annual royalty payment" is selected:
C88: ▼ Total incentive fund = Annual royalty payment × % of royalty a gas company contributes to the incentive fund
C89: ▼ Incentive payment to a landholder = Total incentive fund × (Landholder’s land area utilised by gas company ÷ Total licence area for production)
B90: If "Producing well meeting the target production" is selected:
C91: ▼ Total incentive fund = Total number of producing wells in licence area that exceed production targets × Amount of money per well a gas company contributes to the incentive fund when a well production exceeds its target level
C92: ▼ Incentive payment to a landholder = Total incentive fund ÷ Total number of eligible landholders in licence area
B94: Disclaimer
B95: This model was developed by the Independent Pricing and Regulatory Tribunal (IPART) as a guide for landholders in NSW. It is for general information and we recommend that landholders seek professional advice when negotiating a land access and compensation agreement.

Sheet INPUT
B2: INPUTS
B3: PART A. Inputs for Compensation Payment
B5: 1. Land access agreement details
B6: How long is your access agreement for? | C6: 20 | D6: years
B8: 2. Landholding details
B9: What is the total area of your land in hectares? If you have land area in a different unit, use the "CONVERSION" worksheet to convert into hectares. | C9: 200 | D9: hectares
B10: What is the estimated value of your land per hectare? If you have land value in a different unit, use the "CONVERSION" worksheet to convert into $/hectare. | C10: 15000 | D10: per hectare
B11: What is the rental value of land as a percentage of land value? | C11: 0.08 | D11: percent
B12: 3. Estimated impact on land and landholder
B13: (a) Directly impacted land
B14: In the first year of land access agreement
B15: What is the total area of land used by gas company? | C15: 10 | D15: hectare
B16: From the second year of land access agreement
B17: What is the total area of land used by gas company? | C17: 5.25 | D17: hectare
B18: (b) Residual land (your total land area excluding directly impacted land)
B19: In the first year of land access agreement
B20: What is an estimated reduction in the value of residual land due to severance? | C20: 0 | D20: percent
B21: What is an estimated reduction in the value of residual land due to injurious affection? | C21: 0.2 | D21: percent
B22: From the second year of land access agreement
B23: What is an estimated reduction in the value of residual land due to severance? | C23: 0 | D23: percent
B24: What is an estimated reduction in the value of residual land due to injurious affection? | C24: 0.1 | D24: percent
B25: 4. Cost of landholder time and expert advice
B26: How many hours did you spend negotiating your access agreement? | C26: 150 | D26: hours in total
B27: How many hours do you expect to spend each year on matters related to you access agreement? | C27: 50 | D27: hours per annum
B28: Enter an estimate of the value of your time | C28: 50 | D28: per hour
B29: How much did you spend on fees for professional advice (eg, legal, valuation, taxation and other fees) including GST? | C29: 40000 | D29: per agreement
B30: 5. Other assumptions
B31: What rate of return would you expect to earn on financial investments per year? (You need this input only if you wish to calculate a lump-sum upfront payment) | C31: 0.035 | D31: percent per annum
B32: Inflation rate | C32: 0.025 | D32: percent per annum
B35: PART B. Inputs for Incentive Payment
B36: What is your incentive payment based on? | C36: 1
B37: In which year is the gas project expected to enter the production stage? | C37: 4 | D37: years
B38: =IF($C$36=1,'DO NOT DELETE'!$B$5:$B$7,IF($C$36=2,'DO NOT DELETE'!$C$5:$C$7,'DO NOT DELETE'!$D$5:$D$7)) -> Gas company's statutory annual royalty payment | C38: 1500000 | D38: $ per annum
B39: % of royalty gas company contributes to incentive fund | C39: 5 | D39: percent
B40: Total licence area for production | C40: 22 | D40: hectares

Sheet RESULTS
B2: RESULTS
B3: PART A. Compensation Payment | F3: PART B. Incentive Payment | J3: PART C. Payment Schedule
B4: Payment Structure: | F4: A schedule of your incentive payments is provided below. | J4: The graph below shows compensation payment schedule over your access agreement period.
B5: About Payment Structure: Please select an option to get an estimate of your compensation. Select "Lump-sum Upfront Payment" to get a single upfront payment. Select "Annual Payments" for a series of annual payments.
A6: =MAX(COUNT(B7:B106),COUNT(F7:F106)) -> 20 | B6: Beginning of Year | C6: Annual Payment | F6: Beginning of Year | G6: Annual Payment
A7: 1 | B7: =CALC!B7:B106 -> 1 | C7: =IF(CALC!G7:G106>0,CALC!G7:G106,"") -> 105100 | F7: =IF(CALC!J7:L106>0,CALC!J7:L106,"") -> 1
A8: 2 | B8: 2 | C8: 32974.25 | F8: 2
A9: 3 | B9: 3 | C9: 33798.60625 | F9: 3
A10: 4 | B10: 4 | C10: 34643.57141 | F10: 4
A11: 5 | B11: 5 | C11: 35509.66069 | F11: 5 | G11: 17897.72727
A12: 6 | B12: 6 | C12: 36397.40221 | F12: 6 | G12: 18345.17045
A13: 7 | B13: 7 | C13: 37307.33726 | F13: 7 | G13: 18803.79972
A14: 8 | B14: 8 | C14: 38240.0207 | F14: 8 | G14: 19273.89471
A15: 9 | B15: 9 | C15: 39196.02121 | F15: 9 | G15: 19755.74208
A16: 10 | B16: 10 | C16: 40175.92174 | F16: 10 | G16: 20249.63563
A17: 11 | B17: 11 | C17: 41180.31979 | F17: 11 | G17: 20755.87652
A18: 12 | B18: 12 | C18: 42209.82778 | F18: 12 | G18: 21274.77343
A19: 13 | B19: 13 | C19: 43265.07348 | F19: 13 | G19: 21806.64277
A20: 14 | B20: 14 | C20: 44346.70031 | F20: 14 | G20: 22351.80884
A21: 15 | B21: 15 | C21: 45455.36782 | F21: 15 | G21: 22910.60406
A22: 16 | B22: 16 | C22: 46591.75202 | F22: 16 | G22: 23483.36916
A23: 17 | B23: 17 | C23: 47756.54582 | F23: 17 | G23: 24070.45339
A24: 18 | B24: 18 | C24: 48950.45946 | F24: 18 | G24: 24672.21472
A25: 19 | B25: 19 | C25: 50174.22095 | F25: 19 | G25: 25289.02009
A26: 20 | B26: 20 | C26: 51428.57647 | F26: 20 | G26: 25921.24559
A27: 21
A28: 22
A29: 23
A30: 24
A31: 25
A32: 26
A33: 27
A34: 28
A35: 29
A36: 30
A37: 31
A38: 32
A39: 33
A40: 34
A41: 35
A42: 36
A43: 37
A44: 38
A45: 39
A46: 40
A47: 41
A48: 42
A49: 43
A50: 44
A51: 45
A52: 46
A53: 47
A54: 48
A55: 49
A56: 50
A57: 51
A58: 52
A59: 53
A60: 54
A61: 55
A62: 56
A63: 57
A64: 58
A65: 59
A66: 60
A67: 61
A68: 62
A69: 63
A70: 64
A71: 65
A72: 66
A73: 67
A74: 68
A75: 69
A76: 70
A77: 71
A78: 72
A79: 73
A80: 74
A81: 75
A82: 76
A83: 77
A84: 78
A85: 79
A86: 80
A87: 81
A88: 82
A89: 83
A90: 84
A91: 85
A92: 86
A93: 87
A94: 88
A95: 89
A96: 90
A97: 91
A98: 92
A99: 93
A100: 94
A101: 95
A102: 96
A103: 97
A104: 98
A105: 99
A106: 100

Sheet CALC
B2: DETAILED CALCULATIONS
H3: check = 0 | I3: =(G8/(Interest_Rate-Inflation)*(1-((1+Inflation)/(1+Interest_Rate))^(Access_Period-1))+G7)-I5 -> 3.026798368e-09
B4: PART A. Annual Compensation Payment ($) | H4: PART B. Lump-Sum Payment ($) | J4: PART C. Incentive Payment ($)
H5: Total (Nominal) | I5: =SUM(I7:I106) -> 660561.1632
A6: 0 | B6: Beginning of Year | C6: Rent for land | D6: Payment for severance | E6: Payment for injurious affection | F6: Payment for landholder time and expert advice | G6: Annual Total (Nominal) | H6: Beginning of Year | I6: PV of Annual Total (Nominal) | J6: Beginning of Year | K6: Annual Total (Nominal) | L6: ="Incentive Payment in Year "&(Production_Year+1) &" dollar" -> Incentive Payment in Year 5 dollar
A7: 1 | B7: =IF(A7<=Access_Period,A7,"") -> 1 | C7: =IF(A7<=Access_Period,Land_YR1*MV_Land*RV_Land,"") -> 12000 | D7: =IF(A7<=Access_Period,(Total_Landholding-Land_YR1)*MV_Land*RV_Land*Severance_YR1,"") -> 0 | E7: =IF(A7<=Access_Period,(Total_Landholding-Land_YR1)*MV_Land*RV_Land*IA_YR1,"") -> 45600 | F7: =IF(A7<=Access_Period,Initial_Time_Spent*Value_of_Time+Advice_Cost,"") -> 47500 | G7: =IF(SUM(C7:F7)>0,SUM(C7:F7),0) -> 105100 | H7: =B7 -> 1 | I7: =G7 -> 105100 | J7: =B7 -> 1 | K7: =IF(AND(J7>=Production_Year+1,J7<=Access_Period),IF(J7>Production_Year+1,L7*(1+Inflation)^(J7-(Production_Year+1)),L7),0) -> 0 | L7: =IF(AND(Production_Year<=CALC!$A6,$A7<=Access_Period),IF(Incentive_Option=1,INPUT!$C$38*INPUT!$C$39/100*(Land_YR2/INPUT!$C$40),IF(Incentive_Option=2,INPUT!$C$38*INPUT!$C$39/INPUT!$C$40,INPUT!$C$38)),0) -> 0
A8: 2 | B8: 2 | C8: =IF(A8<=Access_Period,Land_YR2*MV_Land*RV_Land*(1+Inflation)^(A8-$A$7),"") -> 6457.5 | D8: =IF(A8<=Access_Period,(Total_Landholding-Land_YR2)*MV_Land*RV_Land*Severance_YR2*(1+Inflation)^(A8-$A$7),"") -> 0 | E8: =IF(A8<=Access_Period,(Total_Landholding-Land_YR2)*MV_Land*RV_Land*IA_YR2*(1+Inflation)^(A8-$A$7),"") -> 23954.25 | F8: =IF(A8<=Access_Period,Ongoing_Time_Spent*Value_of_Time*(1+Inflation)^(A8-$A$7),"") -> 2562.5 | G8: =IF(SUM(C8:F8)>0,SUM(C8:F8),0) -> 32974.25 | H8: =B8 -> 2 | I8: =G8*(1+Interest_Rate)^-(A8-$A$7) -> 31859.17874 | J8: =B8 -> 2 | K8: 0 | L8: =IF(AND(Production_Year<=CALC!$A7,$A8<=Access_Period),IF(Incentive_Option=1,INPUT!$C$38*INPUT!$C$39/100*(Land_YR2/INPUT!$C$40),IF(Incentive_Option=2,INPUT!$C$38*INPUT!$C$39/INPUT!$C$40,INPUT!$C$38)),0) -> 0
A9: 3 | B9: 3 | C9: 6618.9375 | D9: 0 | E9: 24553.10625 | F9: =IF(A9<=Access_Period,Ongoing_Time_Spent*Value_of_Time*(1+Inflation)^(A9-$A$7),"") -> 2626.5625 | G9: 33798.60625 | H9: 3 | I9: 31551.36059 | J9: 3 | K9: 0 | L9: =IF(AND(Production_Year<=CALC!$A8,$A9<=Access_Period),IF(Incentive_Option=1,INPUT!$C$38*INPUT!$C$39/100*(Land_YR2/INPUT!$C$40),IF(Incentive_Option=2,INPUT!$C$38*INPUT!$C$39/INPUT!$C$40,INPUT!$C$38)),0) -> 0
A10: 4 | B10: 4 | C10: 6784.410937 | D10: 0 | E10: 25166.93391 | F10: 2692.226562 | G10: 34643.57141 | H10: 4 | I10: 31246.51653 | J10: 4 | K10: 0 | L10: =IF(AND(Production_Year<=CALC!$A9,$A10<=Access_Period),IF(Incentive_Option=1,INPUT!$C$38*INPUT!$C$39/100*(Land_YR2/INPUT!$C$40),IF(Incentive_Option=2,INPUT!$C$38*INPUT!$C$39/INPUT!$C$40,INPUT!$C$38)),0) -> 0
A11: 5 | B11: 5 | C11: 6954.021211 | D11: 0 | E11: 25796.10725 | F11: 2759.532227 | G11: 35509.66069 | H11: 5 | I11: 30944.61782 | J11: 5 | K11: 17897.72727 | L11: =IF(AND(Production_Year<=CALC!$A10,$A11<=Access_Period),IF(Incentive_Option=1,INPUT!$C$38*INPUT!$C$39/100*(Land_YR2/INPUT!$C$40),IF(Incentive_Option=2,INPUT!$C$38*INPUT!$C$39/INPUT!$C$40,INPUT!$C$38)),0) -> 17897.72727
A12: 6 | B12: 6 | C12: 7127.871741 | D12: 0 | E12: 26441.00994 | F12: 2828.520532 | G12: 36397.40221 | H12: 6 | I12: 30645.636 | J12: 6 | K12: 18345.17045 | L12: =IF(AND(Production_Year<=CALC!$A11,$A12<=Access_Period),IF(Incentive_Option=1,INPUT!$C$38*INPUT!$C$39/100*(Land_YR2/INPUT!$C$40),IF(Incentive_Option=2,INPUT!$C$38*INPUT!$C$39/INPUT!$C$40,INPUT!$C$38)),0) -> 17897.72727
A13: 7 | B13: 7 | C13: 7306.068535 | D13: 0 | E13: 27102.03518 | F13: 2899.233546 | G13: 37307.33726 | H13: 7 | I13: 30349.5429 | J13: 7 | K13: 18803.79972 | L13: =IF(AND(Production_Year<=CALC!$A12,$A13<=Access_Period),IF(Incentive_Option=1,INPUT!$C$38*INPUT!$C$39/100*(Land_YR2/INPUT!$C$40),IF(Incentive_Option=2,INPUT!$C$38*INPUT!$C$39/INPUT!$C$40,INPUT!$C$38)),0) -> 17897.72727
A14: 8 | B14: 8 | C14: 7488.720248 | D14: 0 | E14: 27779.58606 | F14: 2971.714384 | G14: 38240.0207 | H14: 8 | I14: 30056.3106 | J14: 8 | K14: 19273.89471 | L14: =IF(AND(Production_Year<=CALC!$A13,$A14<=Access_Period),IF(Incentive_Option=1,INPUT!$C$38*INPUT!$C$39/100*(Land_YR2/INPUT!$C$40),IF(Incentive_Option=2,INPUT!$C$38*INPUT!$C$39/INPUT!$C$40,INPUT!$C$38)),0) -> 17897.72727
A15: 9 | B15: 9 | C15: 7675.938254 | D15: 0 | E15: 28474.07571 | F15: 3046.007244 | G15: 39196.02121 | H15: 9 | I15: 29765.91147 | J15: 9 | K15: 19755.74208 | L15: =IF(AND(Production_Year<=CALC!$A14,$A15<=Access_Period),IF(Incentive_Option=1,INPUT!$C$38*INPUT!$C$39/100*(Land_YR2/INPUT!$C$40),IF(Incentive_Option=2,INPUT!$C$38*INPUT!$C$39/INPUT!$C$40,INPUT!$C$38)),0) -> 17897.72727
A16: 10 | B16: 10 | C16: 7867.836711 | D16: 0 | E16: 29185.92761 | F16: 3122.157425 | G16: 40175.92174 | H16: 10 | I16: 29478.31812 | J16: 10 | K16: 20249.63563 | L16: =IF(AND(Production_Year<=CALC!$A15,$A16<=Access_Period),IF(Incentive_Option=1,INPUT!$C$38*INPUT!$C$39/100*(Land_YR2/INPUT!$C$40),IF(Incentive_Option=2,INPUT!$C$38*INPUT!$C$39/INPUT!$C$40,INPUT!$C$38)),0) -> 17897.72727
A17: 11 | B17: 11 | C17: 8064.532628 | D17: 0 | E17: 29915.5758 | F17: 3200.21136 | G17: 41180.31979 | H17: 11 | I17: 29193.50345 | J17: 11 | K17: 20755.87652 | L17: =IF(AND(Production_Year<=CALC!$A16,$A17<=Access_Period),IF(Incentive_Option=1,INPUT!$C$38*INPUT!$C$39/100*(Land_YR2/INPUT!$C$40),IF(Incentive_Option=2,INPUT!$C$38*INPUT!$C$39/INPUT!$C$40,INPUT!$C$38)),0) -> 17897.72727
A18: 12 | B18: 12 | C18: 8266.145944 | D18: 0 | E18: 30663.46519 | F18: 3280.216645 | G18: 42209.82778 | H18: 12 | I18: 28911.44062 | J18: 12 | K18: 21274.77343 | L18: =IF(AND(Production_Year<=CALC!$A17,$A18<=Access_Period),IF(Incentive_Option=1,INPUT!$C$38*INPUT!$C$39/100*(Land_YR2/INPUT!$C$40),IF(Incentive_Option=2,INPUT!$C$38*INPUT!$C$39/INPUT!$C$40,INPUT!$C$38)),0) -> 17897.72727
A19: 13 | B19: 13 | C19: 8472.799593 | D19: 0 | E19: 31430.05182 | F19: 3362.222061 | G19: 43265.07348 | H19: 13 | I19: 28632.10303 | J19: 13 | K19: 21806.64277 | L19: =IF(AND(Production_Year<=CALC!$A18,$A19<=Access_Period),IF(Incentive_Option=1,INPUT!$C$38*INPUT!$C$39/100*(Land_YR2/INPUT!$C$40),IF(Incentive_Option=2,INPUT!$C$38*INPUT!$C$39/INPUT!$C$40,INPUT!$C$38)),0) -> 17897.72727
A20: 14 | B20: 14 | C20: 8684.619583 | D20: 0 | E20: 32215.80312 | F20: 3446.277612 | G20: 44346.70031 | H20: 14 | I20: 28355.46435 | J20: 14 | K20: 22351.80884 | L20: =IF(AND(Production_Year<=CALC!$A19,$A20<=Access_Period),IF(Incentive_Option=1,INPUT!$C$38*INPUT!$C$39/100*(Land_YR2/INPUT!$C$40),IF(Incentive_Option=2,INPUT!$C$38*INPUT!$C$39/INPUT!$C$40,INPUT!$C$38)),0) -> 17897.72727
A21: 15 | B21: 15 | C21: 8901.735072 | D21: 0 | E21: 33021.1982 | F21: 3532.434552 | G21: 45455.36782 | H21: 15 | I21: 28081.49851 | J21: 15 | K21: 22910.60406 | L21: =IF(AND(Production_Year<=CALC!$A20,$A21<=Access_Period),IF(Incentive_Option=1,INPUT!$C$38*INPUT!$C$39/100*(Land_YR2/INPUT!$C$40),IF(Incentive_Option=2,INPUT!$C$38*INPUT!$C$39/INPUT!$C$40,INPUT!$C$38)),0) -> 17897.72727
A22: 16 | B22: 16 | C22: 9124.278449 | D22: 0 | E22: 33846.72815 | F22: 3620.745416 | G22: 46591.75202 | H22: 16 | I22: 27810.17968 | J22: 16 | K22: 23483.36916 | L22: =IF(AND(Production_Year<=CALC!$A21,$A22<=Access_Period),IF(Incentive_Option=1,INPUT!$C$38*INPUT!$C$39/100*(Land_YR2/INPUT!$C$40),IF(Incentive_Option=2,INPUT!$C$38*INPUT!$C$39/INPUT!$C$40,INPUT!$C$38)),0) -> 17897.72727
A23: 17 | B23: 17 | C23: 9352.38541 | D23: 0 | E23: 34692.89635 | F23: 3711.264052 | G23: 47756.54582 | H23: 17 | I23: 27541.4823 | J23: 17 | K23: 24070.45339 | L23: =IF(AND(Production_Year<=CALC!$A22,$A23<=Access_Period),IF(Incentive_Option=1,INPUT!$C$38*INPUT!$C$39/100*(Land_YR2/INPUT!$C$40),IF(Incentive_Option=2,INPUT!$C$38*INPUT!$C$39/INPUT!$C$40,INPUT!$C$38)),0) -> 17897.72727
A24: 18 | B24: 18 | C24: 9586.195045 | D24: 0 | E24: 35560.21876 | F24: 3804.045653 | G24: 48950.45946 | H24: 18 | I24: 27275.38102 | J24: 18 | K24: 24672.21472 | L24: =IF(AND(Production_Year<=CALC!$A23,$A24<=Access_Period),IF(Incentive_Option=1,INPUT!$C$38*INPUT!$C$39/100*(Land_YR2/INPUT!$C$40),IF(Incentive_Option=2,INPUT!$C$38*INPUT!$C$39/INPUT!$C$40,INPUT!$C$38)),0) -> 17897.72727
A25: 19 | B25: 19 | C25: 9825.849922 | D25: 0 | E25: 36449.22423 | F25: 3899.146794 | G25: 50174.22095 | H25: 19 | I25: 27011.85077 | J25: 19 | K25: 25289.02009 | L25: =IF(AND(Production_Year<=CALC!$A24,$A25<=Access_Period),IF(Incentive_Option=1,INPUT!$C$38*INPUT!$C$39/100*(Land_YR2/INPUT!$C$40),IF(Incentive_Option=2,INPUT!$C$38*INPUT!$C$39/INPUT!$C$40,INPUT!$C$38)),0) -> 17897.72727
A26: 20 | B26: 20 | C26: 10071.49617 | D26: 0 | E26: 37360.45484 | F26: 3996.625464 | G26: 51428.57647 | H26: 20 | I26: 26750.8667 | J26: 20 | K26: 25921.24559 | L26: =IF(AND(Production_Year<=CALC!$A25,$A26<=Access_Period),IF(Incentive_Option=1,INPUT!$C$38*INPUT!$C$39/100*(Land_YR2/INPUT!$C$40),IF(Incentive_Option=2,INPUT!$C$38*INPUT!$C$39/INPUT!$C$40,INPUT!$C$38)),0) -> 17897.72727
A27: 21 | G27: 0 | I27: 0 | K27: 0 | L27: =IF(AND(Production_Year<=CALC!$A26,$A27<=Access_Period),IF(Incentive_Option=1,INPUT!$C$38*INPUT!$C$39/100*(Land_YR2/INPUT!$C$40),IF(Incentive_Option=2,INPUT!$C$38*INPUT!$C$39/INPUT!$C$40,INPUT!$C$38)),0) -> 0
A28: 22 | G28: 0 | I28: 0 | K28: 0 | L28: =IF(AND(Production_Year<=CALC!$A27,$A28<=Access_Period),IF(Incentive_Option=1,INPUT!$C$38*INPUT!$C$39/100*(Land_YR2/INPUT!$C$40),IF(Incentive_Option=2,INPUT!$C$38*INPUT!$C$39/INPUT!$C$40,INPUT!$C$38)),0) -> 0
A29: 23 | G29: 0 | I29: 0 | K29: 0 | L29: =IF(AND(Production_Year<=CALC!$A28,$A29<=Access_Period),IF(Incentive_Option=1,INPUT!$C$38*INPUT!$C$39/100*(Land_YR2/INPUT!$C$40),IF(Incentive_Option=2,INPUT!$C$38*INPUT!$C$39/INPUT!$C$40,INPUT!$C$38)),0) -> 0
A30: 24 | G30: 0 | I30: 0 | K30: 0 | L30: =IF(AND(Production_Year<=CALC!$A29,$A30<=Access_Period),IF(Incentive_Option=1,INPUT!$C$38*INPUT!$C$39/100*(Land_YR2/INPUT!$C$40),IF(Incentive_Option=2,INPUT!$C$38*INPUT!$C$39/INPUT!$C$40,INPUT!$C$38)),0) -> 0
A31: 25 | G31: 0 | I31: 0 | K31: 0 | L31: =IF(AND(Production_Year<=CALC!$A30,$A31<=Access_Period),IF(Incentive_Option=1,INPUT!$C$38*INPUT!$C$39/100*(Land_YR2/INPUT!$C$40),IF(Incentive_Option=2,INPUT!$C$38*INPUT!$C$39/INPUT!$C$40,INPUT!$C$38)),0) -> 0
A32: 26 | G32: 0 | I32: 0 | K32: 0 | L32: =IF(AND(Production_Year<=CALC!$A31,$A32<=Access_Period),IF(Incentive_Option=1,INPUT!$C$38*INPUT!$C$39/100*(Land_YR2/INPUT!$C$40),IF(Incentive_Option=2,INPUT!$C$38*INPUT!$C$39/INPUT!$C$40,INPUT!$C$38)),0) -> 0
A33: 27 | G33: 0 | I33: 0 | K33: 0 | L33: =IF(AND(Production_Year<=CALC!$A32,$A33<=Access_Period),IF(Incentive_Option=1,INPUT!$C$38*INPUT!$C$39/100*(Land_YR2/INPUT!$C$40),IF(Incentive_Option=2,INPUT!$C$38*INPUT!$C$39/INPUT!$C$40,INPUT!$C$38)),0) -> 0
A34: 28 | G34: 0 | I34: 0 | K34: 0 | L34: =IF(AND(Production_Year<=CALC!$A33,$A34<=Access_Period),IF(Incentive_Option=1,INPUT!$C$38*INPUT!$C$39/100*(Land_YR2/INPUT!$C$40),IF(Incentive_Option=2,INPUT!$C$38*INPUT!$C$39/INPUT!$C$40,INPUT!$C$38)),0) -> 0
A35: 29 | G35: 0 | I35: 0 | K35: 0 | L35: =IF(AND(Production_Year<=CALC!$A34,$A35<=Access_Period),IF(Incentive_Option=1,INPUT!$C$38*INPUT!$C$39/100*(Land_YR2/INPUT!$C$40),IF(Incentive_Option=2,INPUT!$C$38*INPUT!$C$39/INPUT!$C$40,INPUT!$C$38)),0) -> 0
A36: 30 | G36: 0 | I36: 0 | K36: 0 | L36: =IF(AND(Production_Year<=CALC!$A35,$A36<=Access_Period),IF(Incentive_Option=1,INPUT!$C$38*INPUT!$C$39/100*(Land_YR2/INPUT!$C$40),IF(Incentive_Option=2,INPUT!$C$38*INPUT!$C$39/INPUT!$C$40,INPUT!$C$38)),0) -> 0
A37: 31 | G37: 0 | I37: 0 | K37: 0 | L37: =IF(AND(Production_Year<=CALC!$A36,$A37<=Access_Period),IF(Incentive_Option=1,INPUT!$C$38*INPUT!$C$39/100*(Land_YR2/INPUT!$C$40),IF(Incentive_Option=2,INPUT!$C$38*INPUT!$C$39/INPUT!$C$40,INPUT!$C$38)),0) -> 0
A38: 32 | G38: 0 | I38: 0 | K38: 0 | L38: =IF(AND(Production_Year<=CALC!$A37,$A38<=Access_Period),IF(Incentive_Option=1,INPUT!$C$38*INPUT!$C$39/100*(Land_YR2/INPUT!$C$40),IF(Incentive_Option=2,INPUT!$C$38*INPUT!$C$39/INPUT!$C$40,INPUT!$C$38)),0) -> 0
A39: 33 | B39: =IF(A39<=Access_Period,A39,"") ->  | G39: 0 | I39: 0 | K39: =IF(AND(J39>=Production_Year+1,J39<=Access_Period),IF(J39>Production_Year+1,L39*(1+Inflation)^(J39-(Production_Year+1)),L39),0) -> 0 | L39: =IF(AND(Production_Year<=CALC!$A38,$A39<=Access_Period),IF(Incentive_Option=1,INPUT!$C$38*INPUT!$C$39/100*(Land_YR2/INPUT!$C$40),IF(Incentive_Option=2,INPUT!$C$38*INPUT!$C$39/INPUT!$C$40,INPUT!$C$38)),0) -> 0
A40: 34 | C40: =IF(A40<=Access_Period,Land_YR2*MV_Land*RV_Land*(1+Inflation)^(A40-$A$7),"") ->  | D40: =IF(A40<=Access_Period,(Total_Landholding-Land_YR2)*MV_Land*RV_Land*Severance_YR2*(1+Inflation)^(A40-$A$7),"") ->  | E40: =IF(A40<=Access_Period,(Total_Landholding-Land_YR2)*MV_Land*RV_Land*IA_YR2*(1+Inflation)^(A40-$A$7),"") ->  | F40: =IF(A40<=Access_Period,Ongoing_Time_Spent*Value_of_Time*(1+Inflation)^(A40-$A$7),"") ->  | G40: 0 | I40: 0 | K40: 0 | L40: =IF(AND(Production_Year<=CALC!$A39,$A40<=Access_Period),IF(Incentive_Option=1,INPUT!$C$38*INPUT!$C$39/100*(Land_YR2/INPUT!$C$40),IF(Incentive_Option=2,INPUT!$C$38*INPUT!$C$39/INPUT!$C$40,INPUT!$C$38)),0) -> 0
A41: 35 | G41: 0 | I41: 0 | K41: 0 | L41: =IF(AND(Production_Year<=CALC!$A40,$A41<=Access_Period),IF(Incentive_Option=1,INPUT!$C$38*INPUT!$C$39/100*(Land_YR2/INPUT!$C$40),IF(Incentive_Option=2,INPUT!$C$38*INPUT!$C$39/INPUT!$C$40,INPUT!$C$38)),0) -> 0
A42: 36 | G42: 0 | I42: 0 | K42: 0 | L42: =IF(AND(Production_Year<=CALC!$A41,$A42<=Access_Period),IF(Incentive_Option=1,INPUT!$C$38*INPUT!$C$39/100*(Land_YR2/INPUT!$C$40),IF(Incentive_Option=2,INPUT!$C$38*INPUT!$C$39/INPUT!$C$40,INPUT!$C$38)),0) -> 0
A43: 37 | G43: 0 | I43: 0 | K43: 0 | L43: =IF(AND(Production_Year<=CALC!$A42,$A43<=Access_Period),IF(Incentive_Option=1,INPUT!$C$38*INPUT!$C$39/100*(Land_YR2/INPUT!$C$40),IF(Incentive_Option=2,INPUT!$C$38*INPUT!$C$39/INPUT!$C$40,INPUT!$C$38)),0) -> 0
A44: 38 | G44: 0 | I44: 0 | K44: 0 | L44: =IF(AND(Production_Year<=CALC!$A43,$A44<=Access_Period),IF(Incentive_Option=1,INPUT!$C$38*INPUT!$C$39/100*(Land_YR2/INPUT!$C$40),IF(Incentive_Option=2,INPUT!$C$38*INPUT!$C$39/INPUT!$C$40,INPUT!$C$38)),0) -> 0
A45: 39 | G45: 0 | I45: 0 | K45: 0 | L45: =IF(AND(Production_Year<=CALC!$A44,$A45<=Access_Period),IF(Incentive_Option=1,INPUT!$C$38*INPUT!$C$39/100*(Land_YR2/INPUT!$C$40),IF(Incentive_Option=2,INPUT!$C$38*INPUT!$C$39/INPUT!$C$40,INPUT!$C$38)),0) -> 0
A46: 40 | G46: 0 | I46: 0 | K46: 0 | L46: =IF(AND(Production_Year<=CALC!$A45,$A46<=Access_Period),IF(Incentive_Option=1,INPUT!$C$38*INPUT!$C$39/100*(Land_YR2/INPUT!$C$40),IF(Incentive_Option=2,INPUT!$C$38*INPUT!$C$39/INPUT!$C$40,INPUT!$C$38)),0) -> 0
A47: 41 | G47: 0 | I47: 0 | K47: 0 | L47: =IF(AND(Production_Year<=CALC!$A46,$A47<=Access_Period),IF(Incentive_Option=1,INPUT!$C$38*INPUT!$C$39/100*(Land_YR2/INPUT!$C$40),IF(Incentive_Option=2,INPUT!$C$38*INPUT!$C$39/INPUT!$C$40,INPUT!$C$38)),0) -> 0
A48: 42 | G48: 0 | I48: 0 | K48: 0 | L48: =IF(AND(Production_Year<=CALC!$A47,$A48<=Access_Period),IF(Incentive_Option=1,INPUT!$C$38*INPUT!$C$39/100*(Land_YR2/INPUT!$C$40),IF(Incentive_Option=2,INPUT!$C$38*INPUT!$C$39/INPUT!$C$40,INPUT!$C$38)),0) -> 0
A49: 43 | G49: 0 | I49: 0 | K49: 0 | L49: =IF(AND(Production_Year<=CALC!$A48,$A49<=Access_Period),IF(Incentive_Option=1,INPUT!$C$38*INPUT!$C$39/100*(Land_YR2/INPUT!$C$40),IF(Incentive_Option=2,INPUT!$C$38*INPUT!$C$39/INPUT!$C$40,INPUT!$C$38)),0) -> 0
A50: 44 | G50: 0 | I50: 0 | K50: 0 | L50: =IF(AND(Production_Year<=CALC!$A49,$A50<=Access_Period),IF(Incentive_Option=1,INPUT!$C$38*INPUT!$C$39/100*(Land_YR2/INPUT!$C$40),IF(Incentive_Option=2,INPUT!$C$38*INPUT!$C$39/INPUT!$C$40,INPUT!$C$38)),0) -> 0
A51: 45 | G51: 0 | I51: 0 | K51: 0 | L51: =IF(AND(Production_Year<=CALC!$A50,$A51<=Access_Period),IF(Incentive_Option=1,INPUT!$C$38*INPUT!$C$39/100*(Land_YR2/INPUT!$C$40),IF(Incentive_Option=2,INPUT!$C$38*INPUT!$C$39/INPUT!$C$40,INPUT!$C$38)),0) -> 0
A52: 46 | G52: 0 | I52: 0 | K52: 0 | L52: =IF(AND(Production_Year<=CALC!$A51,$A52<=Access_Period),IF(Incentive_Option=1,INPUT!$C$38*INPUT!$C$39/100*(Land_YR2/INPUT!$C$40),IF(Incentive_Option=2,INPUT!$C$38*INPUT!$C$39/INPUT!$C$40,INPUT!$C$38)),0) -> 0
A53: 47 | G53: 0 | I53: 0 | K53: 0 | L53: =IF(AND(Production_Year<=CALC!$A52,$A53<=Access_Period),IF(Incentive_Option=1,INPUT!$C$38*INPUT!$C$39/100*(Land_YR2/INPUT!$C$40),IF(Incentive_Option=2,INPUT!$C$38*INPUT!$C$39/INPUT!$C$40,INPUT!$C$38)),0) -> 0
A54: 48 | G54: 0 | I54: 0 | K54: 0 | L54: =IF(AND(Production_Year<=CALC!$A53,$A54<=Access_Period),IF(Incentive_Option=1,INPUT!$C$38*INPUT!$C$39/100*(Land_YR2/INPUT!$C$40),IF(Incentive_Option=2,INPUT!$C$38*INPUT!$C$39/INPUT!$C$40,INPUT!$C$38)),0) -> 0
A55: 49 | G55: 0 | I55: 0 | K55: 0 | L55: =IF(AND(Production_Year<=CALC!$A54,$A55<=Access_Period),IF(Incentive_Option=1,INPUT!$C$38*INPUT!$C$39/100*(Land_YR2/INPUT!$C$40),IF(Incentive_Option=2,INPUT!$C$38*INPUT!$C$39/INPUT!$C$40,INPUT!$C$38)),0) -> 0
A56: 50 | G56: 0 | I56: 0 | K56: 0 | L56: =IF(AND(Production_Year<=CALC!$A55,$A56<=Access_Period),IF(Incentive_Option=1,INPUT!$C$38*INPUT!$C$39/100*(Land_YR2/INPUT!$C$40),IF(Incentive_Option=2,INPUT!$C$38*INPUT!$C$39/INPUT!$C$40,INPUT!$C$38)),0) -> 0
A57: 51 | G57: 0 | I57: 0 | K57: 0 | L57: =IF(AND(Production_Year<=CALC!$A56,$A57<=Access_Period),IF(Incentive_Option=1,INPUT!$C$38*INPUT!$C$39/100*(Land_YR2/INPUT!$C$40),IF(Incentive_Option=2,INPUT!$C$38*INPUT!$C$39/INPUT!$C$40,INPUT!$C$38)),0) -> 0
A58: 52 | G58: 0 | I58: 0 | K58: 0 | L58: =IF(AND(Production_Year<=CALC!$A57,$A58<=Access_Period),IF(Incentive_Option=1,INPUT!$C$38*INPUT!$C$39/100*(Land_YR2/INPUT!$C$40),IF(Incentive_Option=2,INPUT!$C$38*INPUT!$C$39/INPUT!$C$40,INPUT!$C$38)),0) -> 0
A59: 53 | G59: 0 | I59: 0 | K59: 0 | L59: =IF(AND(Production_Year<=CALC!$A58,$A59<=Access_Period),IF(Incentive_Option=1,INPUT!$C$38*INPUT!$C$39/100*(Land_YR2/INPUT!$C$40),IF(Incentive_Option=2,INPUT!$C$38*INPUT!$C$39/INPUT!$C$40,INPUT!$C$38)),0) -> 0
A60: 54 | G60: 0 | I60: 0 | K60: 0 | L60: =IF(AND(Production_Year<=CALC!$A59,$A60<=Access_Period),IF(Incentive_Option=1,INPUT!$C$38*INPUT!$C$39/100*(Land_YR2/INPUT!$C$40),IF(Incentive_Option=2,INPUT!$C$38*INPUT!$C$39/INPUT!$C$40,INPUT!$C$38)),0) -> 0
A61: 55 | G61: 0 | I61: 0 | K61: 0 | L61: =IF(AND(Production_Year<=CALC!$A60,$A61<=Access_Period),IF(Incentive_Option=1,INPUT!$C$38*INPUT!$C$39/100*(Land_YR2/INPUT!$C$40),IF(Incentive_Option=2,INPUT!$C$38*INPUT!$C$39/INPUT!$C$40,INPUT!$C$38)),0) -> 0
A62: 56 | G62: 0 | I62: 0 | K62: 0 | L62: =IF(AND(Production_Year<=CALC!$A61,$A62<=Access_Period),IF(Incentive_Option=1,INPUT!$C$38*INPUT!$C$39/100*(Land_YR2/INPUT!$C$40),IF(Incentive_Option=2,INPUT!$C$38*INPUT!$C$39/INPUT!$C$40,INPUT!$C$38)),0) -> 0
A63: 57 | G63: 0 | I63: 0 | K63: 0 | L63: =IF(AND(Production_Year<=CALC!$A62,$A63<=Access_Period),IF(Incentive_Option=1,INPUT!$C$38*INPUT!$C$39/100*(Land_YR2/INPUT!$C$40),IF(Incentive_Option=2,INPUT!$C$38*INPUT!$C$39/INPUT!$C$40,INPUT!$C$38)),0) -> 0
A64: 58 | G64: 0 | I64: 0 | K64: 0 | L64: =IF(AND(Production_Year<=CALC!$A63,$A64<=Access_Period),IF(Incentive_Option=1,INPUT!$C$38*INPUT!$C$39/100*(Land_YR2/INPUT!$C$40),IF(Incentive_Option=2,INPUT!$C$38*INPUT!$C$39/INPUT!$C$40,INPUT!$C$38)),0) -> 0
A65: 59 | G65: 0 | I65: 0 | K65: 0 | L65: =IF(AND(Production_Year<=CALC!$A64,$A65<=Access_Period),IF(Incentive_Option=1,INPUT!$C$38*INPUT!$C$39/100*(Land_YR2/INPUT!$C$40),IF(Incentive_Option=2,INPUT!$C$38*INPUT!$C$39/INPUT!$C$40,INPUT!$C$38)),0) -> 0
A66: 60 | G66: 0 | I66: 0 | K66: 0 | L66: =IF(AND(Production_Year<=CALC!$A65,$A66<=Access_Period),IF(Incentive_Option=1,INPUT!$C$38*INPUT!$C$39/100*(Land_YR2/INPUT!$C$40),IF(Incentive_Option=2,INPUT!$C$38*INPUT!$C$39/INPUT!$C$40,INPUT!$C$38)),0) -> 0
A67: 61 | G67: 0 | I67: 0 | K67: 0 | L67: =IF(AND(Production_Year<=CALC!$A66,$A67<=Access_Period),IF(Incentive_Option=1,INPUT!$C$38*INPUT!$C$39/100*(Land_YR2/INPUT!$C$40),IF(Incentive_Option=2,INPUT!$C$38*INPUT!$C$39/INPUT!$C$40,INPUT!$C$38)),0) -> 0
A68: 62 | G68: 0 | H68: =B68 ->  | I68: 0 | K68: 0 | L68: =IF(AND(Production_Year<=CALC!$A67,$A68<=Access_Period),IF(Incentive_Option=1,INPUT!$C$38*INPUT!$C$39/100*(Land_YR2/INPUT!$C$40),IF(Incentive_Option=2,INPUT!$C$38*INPUT!$C$39/INPUT!$C$40,INPUT!$C$38)),0) -> 0
A69: 63 | G69: 0 | I69: 0 | K69: 0 | L69: =IF(AND(Production_Year<=CALC!$A68,$A69<=Access_Period),IF(Incentive_Option=1,INPUT!$C$38*INPUT!$C$39/100*(Land_YR2/INPUT!$C$40),IF(Incentive_Option=2,INPUT!$C$38*INPUT!$C$39/INPUT!$C$40,INPUT!$C$38)),0) -> 0
A70: 64 | G70: 0 | I70: 0 | K70: 0 | L70: =IF(AND(Production_Year<=CALC!$A69,$A70<=Access_Period),IF(Incentive_Option=1,INPUT!$C$38*INPUT!$C$39/100*(Land_YR2/INPUT!$C$40),IF(Incentive_Option=2,INPUT!$C$38*INPUT!$C$39/INPUT!$C$40,INPUT!$C$38)),0) -> 0
A71: 65 | B71: =IF(A71<=Access_Period,A71,"") ->  | G71: 0 | I71: 0 | K71: =IF(AND(J71>=Production_Year+1,J71<=Access_Period),IF(J71>Production_Year+1,L71*(1+Inflation)^(J71-(Production_Year+1)),L71),0) -> 0 | L71: =IF(AND(Production_Year<=CALC!$A70,$A71<=Access_Period),IF(Incentive_Option=1,INPUT!$C$38*INPUT!$C$39/100*(Land_YR2/INPUT!$C$40),IF(Incentive_Option=2,INPUT!$C$38*INPUT!$C$39/INPUT!$C$40,INPUT!$C$38)),0) -> 0
A72: 66 | C72: =IF(A72<=Access_Period,Land_YR2*MV_Land*RV_Land*(1+Inflation)^(A72-$A$7),"") ->  | D72: =IF(A72<=Access_Period,(Total_Landholding-Land_YR2)*MV_Land*RV_Land*Severance_YR2*(1+Inflation)^(A72-$A$7),"") ->  | E72: =IF(A72<=Access_Period,(Total_Landholding-Land_YR2)*MV_Land*RV_Land*IA_YR2*(1+Inflation)^(A72-$A$7),"") ->  | F72: =IF(A72<=Access_Period,Ongoing_Time_Spent*Value_of_Time*(1+Inflation)^(A72-$A$7),"") ->  | G72: =IF(SUM(C72:F72)>0,SUM(C72:F72),0) -> 0 | H72: =B72 ->  | I72: =G72*(1+Interest_Rate)^-(A72-$A$7) -> 0 | J72: =B72 ->  | K72: 0 | L72: =IF(AND(Production_Year<=CALC!$A71,$A72<=Access_Period),IF(Incentive_Option=1,INPUT!$C$38*INPUT!$C$39/100*(Land_YR2/INPUT!$C$40),IF(Incentive_Option=2,INPUT!$C$38*INPUT!$C$39/INPUT!$C$40,INPUT!$C$38)),0) -> 0
A73: 67 | G73: 0 | I73: 0 | K73: 0 | L73: =IF(AND(Production_Year<=CALC!$A72,$A73<=Access_Period),IF(Incentive_Option=1,INPUT!$C$38*INPUT!$C$39/100*(Land_YR2/INPUT!$C$40),IF(Incentive_Option=2,INPUT!$C$38*INPUT!$C$39/INPUT!$C$40,INPUT!$C$38)),0) -> 0
A74: 68 | G74: 0 | I74: 0 | K74: 0 | L74: =IF(AND(Production_Year<=CALC!$A73,$A74<=Access_Period),IF(Incentive_Option=1,INPUT!$C$38*INPUT!$C$39/100*(Land_YR2/INPUT!$C$40),IF(Incentive_Option=2,INPUT!$C$38*INPUT!$C$39/INPUT!$C$40,INPUT!$C$38)),0) -> 0
A75: 69 | G75: 0 | I75: 0 | K75: 0 | L75: =IF(AND(Production_Year<=CALC!$A74,$A75<=Access_Period),IF(Incentive_Option=1,INPUT!$C$38*INPUT!$C$39/100*(Land_YR2/INPUT!$C$40),IF(Incentive_Option=2,INPUT!$C$38*INPUT!$C$39/INPUT!$C$40,INPUT!$C$38)),0) -> 0
A76: 70 | G76: 0 | I76: 0 | K76: 0 | L76: =IF(AND(Production_Year<=CALC!$A75,$A76<=Access_Period),IF(Incentive_Option=1,INPUT!$C$38*INPUT!$C$39/100*(Land_YR2/INPUT!$C$40),IF(Incentive_Option=2,INPUT!$C$38*INPUT!$C$39/INPUT!$C$40,INPUT!$C$38)),0) -> 0
A77: 71 | G77: 0 | I77: 0 | K77: 0 | L77: =IF(AND(Production_Year<=CALC!$A76,$A77<=Access_Period),IF(Incentive_Option=1,INPUT!$C$38*INPUT!$C$39/100*(Land_YR2/INPUT!$C$40),IF(Incentive_Option=2,INPUT!$C$38*INPUT!$C$39/INPUT!$C$40,INPUT!$C$38)),0) -> 0
A78: 72 | G78: 0 | I78: 0 | K78: 0 | L78: =IF(AND(Production_Year<=CALC!$A77,$A78<=Access_Period),IF(Incentive_Option=1,INPUT!$C$38*INPUT!$C$39/100*(Land_YR2/INPUT!$C$40),IF(Incentive_Option=2,INPUT!$C$38*INPUT!$C$39/INPUT!$C$40,INPUT!$C$38)),0) -> 0
A79: 73 | G79: 0 | I79: 0 | K79: 0 | L79: =IF(AND(Production_Year<=CALC!$A78,$A79<=Access_Period),IF(Incentive_Option=1,INPUT!$C$38*INPUT!$C$39/100*(Land_YR2/INPUT!$C$40),IF(Incentive_Option=2,INPUT!$C$38*INPUT!$C$39/INPUT!$C$40,INPUT!$C$38)),0) -> 0
A80: 74 | G80: 0 | I80: 0 | K80: 0 | L80: =IF(AND(Production_Year<=CALC!$A79,$A80<=Access_Period),IF(Incentive_Option=1,INPUT!$C$38*INPUT!$C$39/100*(Land_YR2/INPUT!$C$40),IF(Incentive_Option=2,INPUT!$C$38*INPUT!$C$39/INPUT!$C$40,INPUT!$C$38)),0) -> 0
A81: 75 | G81: 0 | I81: 0 | K81: 0 | L81: =IF(AND(Production_Year<=CALC!$A80,$A81<=Access_Period),IF(Incentive_Option=1,INPUT!$C$38*INPUT!$C$39/100*(Land_YR2/INPUT!$C$40),IF(Incentive_Option=2,INPUT!$C$38*INPUT!$C$39/INPUT!$C$40,INPUT!$C$38)),0) -> 0
A82: 76 | G82: 0 | I82: 0 | K82: 0 | L82: =IF(AND(Production_Year<=CALC!$A81,$A82<=Access_Period),IF(Incentive_Option=1,INPUT!$C$38*INPUT!$C$39/100*(Land_YR2/INPUT!$C$40),IF(Incentive_Option=2,INPUT!$C$38*INPUT!$C$39/INPUT!$C$40,INPUT!$C$38)),0) -> 0
A83: 77 | G83: 0 | I83: 0 | K83: 0 | L83: =IF(AND(Production_Year<=CALC!$A82,$A83<=Access_Period),IF(Incentive_Option=1,INPUT!$C$38*INPUT!$C$39/100*(Land_YR2/INPUT!$C$40),IF(Incentive_Option=2,INPUT!$C$38*INPUT!$C$39/INPUT!$C$40,INPUT!$C$38)),0) -> 0
A84: 78 | G84: 0 | I84: 0 | K84: 0 | L84: =IF(AND(Production_Year<=CALC!$A83,$A84<=Access_Period),IF(Incentive_Option=1,INPUT!$C$38*INPUT!$C$39/100*(Land_YR2/INPUT!$C$40),IF(Incentive_Option=2,INPUT!$C$38*INPUT!$C$39/INPUT!$C$40,INPUT!$C$38)),0) -> 0
A85: 79 | G85: 0 | I85: 0 | K85: 0 | L85: =IF(AND(Production_Year<=CALC!$A84,$A85<=Access_Period),IF(Incentive_Option=1,INPUT!$C$38*INPUT!$C$39/100*(Land_YR2/INPUT!$C$40),IF(Incentive_Option=2,INPUT!$C$38*INPUT!$C$39/INPUT!$C$40,INPUT!$C$38)),0) -> 0
A86: 80 | G86: 0 | I86: 0 | K86: 0 | L86: =IF(AND(Production_Year<=CALC!$A85,$A86<=Access_Period),IF(Incentive_Option=1,INPUT!$C$38*INPUT!$C$39/100*(Land_YR2/INPUT!$C$40),IF(Incentive_Option=2,INPUT!$C$38*INPUT!$C$39/INPUT!$C$40,INPUT!$C$38)),0) -> 0
A87: 81 | G87: 0 | I87: 0 | K87: 0 | L87: =IF(AND(Production_Year<=CALC!$A86,$A87<=Access_Period),IF(Incentive_Option=1,INPUT!$C$38*INPUT!$C$39/100*(Land_YR2/INPUT!$C$40),IF(Incentive_Option=2,INPUT!$C$38*INPUT!$C$39/INPUT!$C$40,INPUT!$C$38)),0) -> 0
A88: 82 | G88: 0 | H88: =B88 ->  | I88: 0 | K88: 0 | L88: =IF(AND(Production_Year<=CALC!$A87,$A88<=Access_Period),IF(Incentive_Option=1,INPUT!$C$38*INPUT!$C$39/100*(Land_YR2/INPUT!$C$40),IF(Incentive_Option=2,INPUT!$C$38*INPUT!$C$39/INPUT!$C$40,INPUT!$C$38)),0) -> 0
A89: 83 | G89: 0 | H89: =B89 ->  | I89: 0 | K89: 0 | L89: =IF(AND(Production_Year<=CALC!$A88,$A89<=Access_Period),IF(Incentive_Option=1,INPUT!$C$38*INPUT!$C$39/100*(Land_YR2/INPUT!$C$40),IF(Incentive_Option=2,INPUT!$C$38*INPUT!$C$39/INPUT!$C$40,INPUT!$C$38)),0) -> 0
A90: 84 | G90: 0 | I90: 0 | K90: 0 | L90: =IF(AND(Production_Year<=CALC!$A89,$A90<=Access_Period),IF(Incentive_Option=1,INPUT!$C$38*INPUT!$C$39/100*(Land_YR2/INPUT!$C$40),IF(Incentive_Option=2,INPUT!$C$38*INPUT!$C$39/INPUT!$C$40,INPUT!$C$38)),0) -> 0
A91: 85 | G91: 0 | I91: 0 | K91: 0 | L91: =IF(AND(Production_Year<=CALC!$A90,$A91<=Access_Period),IF(Incentive_Option=1,INPUT!$C$38*INPUT!$C$39/100*(Land_YR2/INPUT!$C$40),IF(Incentive_Option=2,INPUT!$C$38*INPUT!$C$39/INPUT!$C$40,INPUT!$C$38)),0) -> 0
A92: 86 | G92: 0 | I92: 0 | K92: 0 | L92: =IF(AND(Production_Year<=CALC!$A91,$A92<=Access_Period),IF(Incentive_Option=1,INPUT!$C$38*INPUT!$C$39/100*(Land_YR2/INPUT!$C$40),IF(Incentive_Option=2,INPUT!$C$38*INPUT!$C$39/INPUT!$C$40,INPUT!$C$38)),0) -> 0
A93: 87 | G93: 0 | I93: 0 | K93: 0 | L93: =IF(AND(Production_Year<=CALC!$A92,$A93<=Access_Period),IF(Incentive_Option=1,INPUT!$C$38*INPUT!$C$39/100*(Land_YR2/INPUT!$C$40),IF(Incentive_Option=2,INPUT!$C$38*INPUT!$C$39/INPUT!$C$40,INPUT!$C$38)),0) -> 0
A94: 88 | G94: 0 | I94: 0 | K94: 0 | L94: =IF(AND(Production_Year<=CALC!$A93,$A94<=Access_Period),IF(Incentive_Option=1,INPUT!$C$38*INPUT!$C$39/100*(Land_YR2/INPUT!$C$40),IF(Incentive_Option=2,INPUT!$C$38*INPUT!$C$39/INPUT!$C$40,INPUT!$C$38)),0) -> 0
A95: 89 | G95: 0 | I95: 0 | K95: 0 | L95: =IF(AND(Production_Year<=CALC!$A94,$A95<=Access_Period),IF(Incentive_Option=1,INPUT!$C$38*INPUT!$C$39/100*(Land_YR2/INPUT!$C$40),IF(Incentive_Option=2,INPUT!$C$38*INPUT!$C$39/INPUT!$C$40,INPUT!$C$38)),0) -> 0
A96: 90 | G96: 0 | I96: 0 | K96: 0 | L96: =IF(AND(Production_Year<=CALC!$A95,$A96<=Access_Period),IF(Incentive_Option=1,INPUT!$C$38*INPUT!$C$39/100*(Land_YR2/INPUT!$C$40),IF(Incentive_Option=2,INPUT!$C$38*INPUT!$C$39/INPUT!$C$40,INPUT!$C$38)),0) -> 0
A97: 91 | G97: 0 | I97: 0 | K97: 0 | L97: =IF(AND(Production_Year<=CALC!$A96,$A97<=Access_Period),IF(Incentive_Option=1,INPUT!$C$38*INPUT!$C$39/100*(Land_YR2/INPUT!$C$40),IF(Incentive_Option=2,INPUT!$C$38*INPUT!$C$39/INPUT!$C$40,INPUT!$C$38)),0) -> 0
A98: 92 | G98: 0 | I98: 0 | K98: 0 | L98: =IF(AND(Production_Year<=CALC!$A97,$A98<=Access_Period),IF(Incentive_Option=1,INPUT!$C$38*INPUT!$C$39/100*(Land_YR2/INPUT!$C$40),IF(Incentive_Option=2,INPUT!$C$38*INPUT!$C$39/INPUT!$C$40,INPUT!$C$38)),0) -> 0
A99: 93 | G99: 0 | I99: 0 | K99: 0 | L99: =IF(AND(Production_Year<=CALC!$A98,$A99<=Access_Period),IF(Incentive_Option=1,INPUT!$C$38*INPUT!$C$39/100*(Land_YR2/INPUT!$C$40),IF(Incentive_Option=2,INPUT!$C$38*INPUT!$C$39/INPUT!$C$40,INPUT!$C$38)),0) -> 0
A100: 94 | G100: 0 | I100: 0 | K100: 0 | L100: =IF(AND(Production_Year<=CALC!$A99,$A100<=Access_Period),IF(Incentive_Option=1,INPUT!$C$38*INPUT!$C$39/100*(Land_YR2/INPUT!$C$40),IF(Incentive_Option=2,INPUT!$C$38*INPUT!$C$39/INPUT!$C$40,INPUT!$C$38)),0) -> 0
A101: 95 | G101: 0 | I101: 0 | K101: 0 | L101: =IF(AND(Production_Year<=CALC!$A100,$A101<=Access_Period),IF(Incentive_Option=1,INPUT!$C$38*INPUT!$C$39/100*(Land_YR2/INPUT!$C$40),IF(Incentive_Option=2,INPUT!$C$38*INPUT!$C$39/INPUT!$C$40,INPUT!$C$38)),0) -> 0
A102: 96 | G102: 0 | I102: 0 | K102: 0 | L102: =IF(AND(Production_Year<=CALC!$A101,$A102<=Access_Period),IF(Incentive_Option=1,INPUT!$C$38*INPUT!$C$39/100*(Land_YR2/INPUT!$C$40),IF(Incentive_Option=2,INPUT!$C$38*INPUT!$C$39/INPUT!$C$40,INPUT!$C$38)),0) -> 0
A103: 97 | B103: =IF(A103<=Access_Period,A103,"") ->  | G103: 0 | I103: 0 | K103: =IF(AND(J103>=Production_Year+1,J103<=Access_Period),IF(J103>Production_Year+1,L103*(1+Inflation)^(J103-(Production_Year+1)),L103),0) -> 0 | L103: =IF(AND(Production_Year<=CALC!$A102,$A103<=Access_Period),IF(Incentive_Option=1,INPUT!$C$38*INPUT!$C$39/100*(Land_YR2/INPUT!$C$40),IF(Incentive_Option=2,INPUT!$C$38*INPUT!$C$39/INPUT!$C$40,INPUT!$C$38)),0) -> 0
A104: 98 | G104: 0 | I104: 0 | K104: 0 | L104: =IF(AND(Production_Year<=CALC!$A103,$A104<=Access_Period),IF(Incentive_Option=1,INPUT!$C$38*INPUT!$C$39/100*(Land_YR2/INPUT!$C$40),IF(Incentive_Option=2,INPUT!$C$38*INPUT!$C$39/INPUT!$C$40,INPUT!$C$38)),0) -> 0
A105: 99 | G105: 0 | I105: 0 | K105: 0 | L105: =IF(AND(Production_Year<=CALC!$A104,$A105<=Access_Period),IF(Incentive_Option=1,INPUT!$C$38*INPUT!$C$39/100*(Land_YR2/INPUT!$C$40),IF(Incentive_Option=2,INPUT!$C$38*INPUT!$C$39/INPUT!$C$40,INPUT!$C$38)),0) -> 0
A106: 100 | G106: 0 | I106: 0 | K106: 0 | L106: =IF(AND(Production_Year<=CALC!$A105,$A106<=Access_Period),IF(Incentive_Option=1,INPUT!$C$38*INPUT!$C$39/100*(Land_YR2/INPUT!$C$40),IF(Incentive_Option=2,INPUT!$C$38*INPUT!$C$39/INPUT!$C$40,INPUT!$C$38)),0) -> 0

Sheet CONVERSION
B2: CONVERSION CALCULATOR
B3: This Compensation Model calculates compensation based on land area in hectares and land value ($) per hectare. If you have different units for your land area and value, please use the following calculator to convert your figures to hectares.
B4: Select your land and valuation unit: | C4: 1
B7: ="Enter land area in " & CHOOSE(C4,'DO NOT DELETE'!F4,'DO NOT DELETE'!F5,'DO NOT DELETE'!F6,'DO NOT DELETE'!F7) -> Enter land area in Square metre | D7: =CHOOSE(C4,'DO NOT DELETE'!F4,'DO NOT DELETE'!F5,'DO NOT DELETE'!F6,'DO NOT DELETE'!F7) -> Square metre | F7: =IF(ISNUMBER(C7),CHOOSE(C4,'DO NOT DELETE'!G4,'DO NOT DELETE'!G5,'DO NOT DELETE'!G6,'DO NOT DELETE'!G7)*C7,"") ->  | G7: Hectares
B9: ="Enter land value in $ per " & CHOOSE(C4,'DO NOT DELETE'!F4,'DO NOT DELETE'!F5,'DO NOT DELETE'!F6,'DO NOT DELETE'!F7) -> Enter land value in $ per Square metre | D9: ="per " & CHOOSE(C4,'DO NOT DELETE'!F4,'DO NOT DELETE'!F5,'DO NOT DELETE'!F6,'DO NOT DELETE'!F7) -> per Square metre | F9: =IF(ISNUMBER(C9),C9*(1/CHOOSE(C4,'DO NOT DELETE'!G4,'DO NOT DELETE'!G5,'DO NOT DELETE'!G6,'DO NOT DELETE'!G7)),"") ->  | G9: per Hectare

Sheet DO NOT DELETE (hidden)
A2: Incentive Payment | F2: Conversion Chart
A3: Type | B3: Payment based on | G3: Hectare
B4: (1) Royalty payment | C4: (2) Meeting target production | D4: (3) Gas company provided an estimate of annual incentive payment | F4: Square metre | G4: 0.0001
A5: Statutory annual royalty payment | B5: Gas company's statutory annual royalty payment | C5: Total number of producing wells in licence area that exceed the production target | D5: An estimate of annual incentive payments in the first year of production | F5: Square kilometre | G5: 100
A6: Producing well meeting the target production | B6: % of royalty gas company contributes to incentive fund | C6: Amount of money per well a gas company contributes to the incentive fund in the first year of production when meeting a target level of gas production | F6: Acre | G6: 0.4046856422
A7: Estimated annual incentive payment | B7: Total licence area for production | C7: Total number of eligible landholders in licence area | F7: Square Yard | G7: 8.3612736e-05
